bitfinex-derivatives/quotes_SOLF0:USTF0_20240829
["timestamp","ask_amount","ask_price","bid_price","bid_amount"]
[1724959637974,0.05370081,140.37,140.29,3.5629]
[1724959637975,27.40370081,140.37,140.29,3.5629]
[1724959638174,3.5619,140.34,140.32,0.05416538]
[1724959638483,27.40370081,140.37,140.32,0.05416538]
[1724959638690,3.5624,140.32,140.27,27.35]
[1724959638888,3.5624,140.32,140.27,30.95057622]
[1724959639086,3.1256,140.33,140.27,3.60057622]
[1724959639387,30.4756,140.33,140.24,27.35]
[1724959639691,0.05229392,140.3,140.24,27.35]
[1724959640081,0.05229392,140.3,140.25,27.35]
[1724959640281,0.0498738,140.29,140.25,27.35]
[1724959640487,0.0498738,140.29,140.27,27.35]
[1724959640780,0.0498738,140.29,140.27,30.95628718]
[1724959641783,0.0498738,140.29,140.28,3.5634]
[1724959642086,3.5614,140.36,140.27,37.93628718]
[1724959642287,3.5614,140.36,140.3,3.5628]
[1724959642876,0.04658745,140.34,140.32,0.05238217]
[1724959644089,3.60838745,140.34,140.32,0.05238217]
[1724959644392,0.04658745,140.34,140.27,37.82628718]
[1724959644586,3.2373,140.33,140.27,37.82628718]
[1724959644781,6.7996,140.33,140.27,37.82628718]
[1724959645590,6.7996,140.33,140.28,3.5633]
[1724959645984,3.5624,140.32,140.27,7.16988718]
[1724959646296,0.04785826,140.31,140.27,3.60628718]
[1724959646485,0.04785826,140.31,140.25,34.22]
[1724959647199,0.04785826,140.31,140.27,3.5634]
[1724959648489,0.04785826,140.31,140.27,7.1165584]
[1724959648692,0.04785826,140.31,140.28,3.5633]
[1724959649484,0.04785826,140.31,140.29,3.49687779]
[1724959649992,0.04785826,140.31,140.28,3.5633]
[1724959650295,0.04785826,140.31,140.28,3.57315736]
[1724959650586,0.04785826,140.31,140.25,34.22]
[1724959651191,3.61055826,140.31,140.27,3.5636]
[1724959651487,3.61055826,140.31,140.27,7.05801892]
[1724959651794,0.04785826,140.31,140.29,3.5631]
[1724959651994,0.04785826,140.31,140.27,3.49441892]
[1724959652179,0.04785826,140.31,140.25,34.22]
[1724959652781,0.04785826,140.31,140.28,3.5632]
[1724959652986,0.04785826,140.31,140.28,7.16068446]
[1724959653389,0.04785826,140.31,140.28,3.59748446]
[1724959653587,0.04785826,140.31,140.27,34.22]
[1724959654098,0.04785826,140.31,140.29,3.5629]
[1724959655798,0.04785826,140.31,140.27,3.61743486]
[1724959656092,0.04785826,140.31,140.25,34.22]
[1724959656293,0.04785826,140.31,140.26,34.22]
[1724959656686,0.04785826,140.31,140.3,3.5629]
[1724959657294,0.04785826,140.31,140.3,7.07524392]
[1724959657989,3.1589,140.38,140.35,3.5614]
[1724959658186,3.1589,140.38,140.3,3.51234392]
[1724959658187,3.1589,140.38,140.37,34.22]
[1724959658996,3.1589,140.38,140.36,0.05177049]
[1724959659793,6.7199,140.38,140.36,0.05177049]
[1724959660193,3.1589,140.38,140.36,0.05177049]
[1724959667402,3.5611,140.37,140.36,0.05177049]
[1724959667602,3.1589,140.38,140.36,0.05177049]
[1724959668504,6.7198,140.38,140.36,0.05177049]
[1724959669014,3.1589,140.38,140.36,0.05177049]
[1724959671800,3.1589,140.38,140.36,3.61307049]
[1724959673008,3.1589,140.38,140.36,0.05177049]
[1724959673504,3.1589,140.38,140.36,3.61297049]
[1724959674307,0.04854541,140.39,140.36,0.05177049]
[1724959674712,0.04854541,140.39,140.36,3.61297049]
[1724959674904,0.04854541,140.39,140.36,0.05177049]
[1724959676809,0.04854541,140.39,140.36,3.61297049]
[1724959677214,0.04854541,140.39,140.36,0.05177049]
[1724959677811,0.04854541,140.39,140.37,3.561]
[1724959678609,0.04854541,140.39,140.36,3.61297049]
[1724959679404,0.04854541,140.39,140.37,3.5611]
[1724959679605,0.04854541,140.39,140.36,0.05177049]
[1724959680412,0.04854541,140.39,140.37,27.36]
[1724959681317,0.04854541,140.39,140.38,3.49549049]
[1724959682308,0.04854541,140.39,140.38,7.05629049]
[1724959683114,1.4612,140.45,140.41,3.56]
[1724959683318,1.4612,140.45,140.41,27.36]
[1724959683518,1.4612,140.45,140.43,27.36]
[1724959683817,90.99438533,140.48,140.44,3.5593]
[1724959684021,90.99438533,140.48,140.4,27.36]
[1724959684319,1.5826,140.49,140.44,27.41223439]
[1724959684320,0.04832114,140.47,140.44,27.41223439]
[1724959684617,0.04832114,140.47,140.45,3.5589]
[1724959685317,0.04832114,140.47,140.46,3.5588]
[1724959685526,0.04832114,140.47,140.44,27.41223439]
[1724959685816,0.04832114,140.47,140.44,0.05223439]
[1724959686924,0.04832114,140.47,140.44,3.61133439]
[1724959687125,0.04832114,140.47,140.45,27.36]
[1724959687320,0.04832114,140.47,140.46,3.5588]
[1724959687527,0.04832114,140.47,140.46,7.14756103]
[1724959687720,557.91387948,140.54,140.48,27.36]
[1724959688023,557.91387948,140.54,140.49,3.56563069]
[1724959688024,340.0132,140.54,140.49,3.56563069]
[1724959688221,336.4562,140.54,140.49,3.56563069]
[1724959688722,0.0529994,140.53,140.5,0.04781411]
[1724959690122,3.5573,140.52,140.5,0.04781411]
[1724959690319,0.0529994,140.53,140.5,0.04781411]
[1724959690822,0.0529994,140.53,140.5,3.60551411]
[1724959691032,0.0529994,140.53,140.5,0.04781411]
[1724959691418,0.0529994,140.53,140.5,3.60551411]
[1724959692422,0.0529994,140.53,140.5,0.04781411]
[1724959692828,0.0529994,140.53,140.5,3.60531411]
[1724959694130,0.0529994,140.53,140.52,3.5573]
[1724959695020,0.0529994,140.53,140.51,3.5574]
[1724959695224,0.0529994,140.53,140.5,0.04781411]
[1724959695834,0.0529994,140.53,140.51,3.5575]
[1724959696130,0.0529994,140.53,140.5,0.04781411]
[1724959696431,0.0529994,140.53,140.52,3.5573]
[1724959700323,0.0529994,140.53,140.52,30.9173]
[1724959701938,0.0529994,140.53,140.51,27.36]
[1724959702536,0.0529994,140.53,140.51,30.9174]
[1724959703133,0.0529994,140.53,140.52,3.5573]
[1724959704441,0.0529994,140.53,140.52,30.9173]
[1724959705738,0.0529994,140.53,140.52,3.5573]
[1724959708539,0.0529994,140.53,140.51,27.36]
[1724959711845,0.0529994,140.53,140.5,3.60561411]
[1724959712248,0.0529994,140.53,140.5,0.04781411]
[1724959713043,0.0529994,140.53,140.5,3.60561411]
[1724959713250,0.0529994,140.53,140.51,27.36]
[1724959714541,0.0529994,140.53,140.5,0.04781411]
[1724959714942,3.5574,140.52,140.5,0.04781411]
[1724959715248,1.5027,140.52,140.5,0.04781411]
[1724959715450,4.504,140.52,140.47,27.36]
[1724959715747,1.5027,140.52,140.51,27.36]
[1724959716145,0.0529994,140.53,140.51,27.36]
[1724959716344,0.0529994,140.53,140.51,27.40656711]
[1724959716943,0.0529994,140.53,140.51,0.04656711]
[1724959717352,0.0529994,140.53,140.49,27.36]
[1724959717353,0.0529994,140.53,140.46,3.63544237]
[1724959717544,27.36,140.52,140.43,27.36]
[1724959717744,1.5027,140.51,140.43,27.36]
[1724959717942,3.5579,140.5,140.45,14.489]
[1724959718446,0.05439975,140.49,140.46,3.5905515]
[1724959718650,0.05439975,140.49,140.47,10.93]
[1724959719546,0.05439975,140.49,140.46,10.97920783]
[1724959719750,3.61239975,140.49,140.46,10.97920783]
[1724959719949,3.61239975,140.49,140.46,0.04920783]
[1724959720145,0.05439975,140.49,140.46,0.04920783]
[1724959720748,3.5583,140.48,140.46,0.04920783]
[1724959722151,3.5585,140.47,140.46,0.04920783]
[1724959723054,1.63279975,140.49,140.4,27.31]
[1724959723251,27.31,140.48,140.38,30.80549049]
[1724959723451,27.31,140.48,140.4,3.5603]
[1724959723754,3.5595,140.44,140.4,3.5603]
[1724959724254,27.35846718,140.43,140.22,74.55340959]
[1724959724456,0.04511189,140.36,140.33,27.31]
[1724959724659,0.04582284,140.36,140.34,3.5618]
[1724959724960,0.04582284,140.36,140.35,3.49118427]
[1724959725258,0.04582284,140.36,140.34,3.5618]
[1724959725445,338.1013,140.43,140.35,27.31]
[1724959725752,27.31,140.51,140.39,27.31]
[1724959725951,27.31,140.51,140.33,6.9]
[1724959725952,1.5427,140.46,140.41,27.31]
[1724959726152,1.5427,140.46,140.41,30.8699]
[1724959726348,1.5427,140.46,140.41,27.31]
[1724959726659,0.05212566,140.45,140.42,0.04863719]
[1724959727355,0.05212566,140.45,140.43,27.31]
[1724959729760,0.05212566,140.45,140.43,3.5595]
[1724959729957,0.05212566,140.45,140.42,0.04863719]
[1724959730257,0.05212566,140.45,140.42,3.60823719]
[1724959730652,0.05212566,140.45,140.42,0.04863719]
[1724959731457,0.05212566,140.45,140.43,3.5596]
[1724959732456,0.05212566,140.45,140.42,3.60833719]
[1724959733450,0.05212566,140.45,140.42,0.04863719]
[1724959733859,0.05212566,140.45,140.43,3.5596]
[1724959735157,0.05212566,140.45,140.42,0.04863719]
[1724959735861,0.05212566,140.45,140.43,3.5595]
[1724959736061,0.05212566,140.45,140.42,0.04863719]
[1724959736659,0.05212566,140.45,140.42,3.60823719]
[1724959737164,0.05212566,140.45,140.42,0.04863719]
[1724959738360,3.61122566,140.45,140.42,0.04863719]
[1724959739050,0.05212566,140.45,140.42,0.04863719]
[1724959740354,3.61112566,140.45,140.42,0.04863719]
[1724959740866,0.05212566,140.45,140.42,0.04863719]
[1724959741266,0.05212566,140.45,140.27,10.61416879]
[1724959741267,3.5607,140.39,140.27,10.61416879]
[1724959741457,3.5607,140.39,140.24,24.23169237]
[1724959741458,27.31,140.39,140.28,1.96927403]
[1724959741770,1.4394,140.38,140.29,27.31]
[1724959741963,15.9504,140.38,140.32,14.5122]
[1724959742463,15.9504,140.38,140.32,10.95]
[1724959742464,0.05416531,140.36,140.32,10.95]
[1724959743452,0.05416531,140.36,140.32,14.5123]
[1724959744058,0.05416531,140.36,140.29,27.37]
[1724959744358,0.05416531,140.36,140.27,27.37]
[1724959744560,0.04632038,140.33,140.27,27.37]
[1724959744762,0.04632038,140.33,140.3,3.5627]
[1724959745060,0.04632038,140.33,140.27,27.37]
[1724959745658,0.04632038,140.33,140.26,3.618456]
[1724959745870,0.04632038,140.33,140.28,27.37]
[1724959746460,0.04632038,140.33,140.3,3.5628]
[1724959746970,0.04632038,140.33,140.28,27.37]
[1724959747663,0.04632038,140.33,140.26,30.88582768]
[1724959747967,30.97862038,140.33,140.27,3.5634]
[1724959748166,0.05335985,140.31,140.24,27.37]
[1724959748361,0.05335985,140.31,140.27,3.5634]
[1724959748662,0.05335985,140.31,140.26,27.37]
[1724959749964,0.05335985,140.31,140.24,6.88]
[1724959749965,0.05335985,140.31,140.28,27.37]
[1724959750565,0.05335985,140.31,140.29,3.5631]
[1724959750768,0.05335985,140.31,140.28,27.37]
[1724959751470,0.05335985,140.31,140.3,3.5629]
[1724959751667,1.5676,140.36,140.29,27.37]
[1724959751876,6.88,140.4,140.33,27.37]
[1724959752076,1.466,140.41,140.33,30.95725361]
[1724959752572,1.4363,140.42,140.35,27.37]
[1724959752769,0.05128756,140.38,140.37,27.37]
[1724959752967,0.0486443,140.39,140.37,27.37]
[1724959753164,0.05207634,140.39,140.38,3.5608]
[1724959754471,0.05207634,140.39,140.37,0.04509361]
[1724959756775,0.05207634,140.39,140.34,6.88]
[1724959756966,27.42207634,140.39,140.28,34.25]
[1724959757166,2.9248,140.38,140.3,27.37]
[1724959757570,2.9248,140.38,140.34,3.5618]
[1724959757774,0.04804464,140.37,140.3,27.37]
[1724959758177,0.04804464,140.37,140.33,3.5621]
[1724959759384,0.04804464,140.37,140.32,3.5623]
[1724959759573,0.04804464,140.37,140.28,10.52359846]
[1724959759574,0.04804464,140.37,140.28,37.89359846]
[1724959759775,0.04538577,140.34,140.28,37.89359846]
[1724959759969,0.04538577,140.34,140.31,3.5624]
[1724959760874,0.04538577,140.34,140.28,3.64359846]
[1724959761071,0.04538577,140.34,140.26,34.25]
[1724959761385,0.04538577,140.34,140.26,27.37]
[1724959761570,0.04538577,140.34,140.3,3.5628]
[1724959761772,0.04538577,140.34,140.26,30.99585966]
[1724959762172,3.60728577,140.34,140.29,3.5629]
[1724959762375,3.60728577,140.34,140.26,30.99585966]
[1724959762376,0.04538577,140.34,140.26,30.99585966]
[1724959762578,0.04538577,140.34,140.33,3.5621]
[1724959763484,0.04538577,140.34,140.26,3.62585966]
[1724959763685,0.04538577,140.34,140.26,27.37]
[1724959763978,0.04538577,140.34,140.29,3.5629]
[1724959764281,30.97728577,140.34,140.26,31.00197028]
[1724959764482,27.41538577,140.34,140.28,3.5632]
[1724959764887,30.97728577,140.34,140.28,3.5632]
[1724959765580,30.97728577,140.34,140.29,3.5631]
[1724959767379,0.04538577,140.34,140.3,3.5628]
[1724959767585,0.04538577,140.34,140.26,31.00197028]
[1724959769485,0.04538577,140.34,140.31,3.5625]
[1724959769687,0.04538577,140.34,140.26,31.00197028]
[1724959770380,0.04538577,140.34,140.28,27.37]
[1724959770582,0.04538577,140.34,140.3,27.37]
[1724959770782,0.04538577,140.34,140.33,3.5621]
[1724959771789,335.0,140.37,140.36,3.5613]
[1724959772082,30.93,140.42,140.36,3.5613]
[1724959772283,339.5276,140.47,140.38,3.5608]
[1724959772284,1.4899,140.41,140.38,3.5608]
[1724959772587,1.4899,140.41,140.35,27.37]
[1724959772790,0.04532221,140.39,140.38,3.57300185]
[1724959773688,0.04532221,140.39,140.37,0.05304689]
[1724959774287,0.04532221,140.39,140.37,7.22559874]
[1724959774486,0.04532221,140.39,140.37,3.61414689]
[1724959774988,0.04532221,140.39,140.37,7.09102374]
[1724959776094,0.04532221,140.39,140.37,3.61414689]
[1724959777189,0.04532221,140.39,140.37,0.05304689]
[1724959778087,27.37,140.38,140.37,0.05304689]
[1724959779288,27.37,140.38,140.33,7.12356056]
[1724959779488,27.37,140.38,140.33,3.562]
[1724959779787,30.9312,140.37,140.33,3.562]
[1724959780194,30.9312,140.37,140.32,3.5622]
[1724959780390,0.05045927,140.36,140.28,27.37]
[1724959780793,0.05045927,140.36,140.32,3.5622]
[1724959781191,3.61175927,140.36,140.31,3.50016063]
[1724959781396,3.61175927,140.36,140.31,3.5624]
[1724959781593,3.61175927,140.36,140.31,7.13128199]
[1724959785199,3.61175927,140.36,140.3,3.5628]
[1724959785200,30.9316,140.35,140.3,3.5628]
[1724959785400,0.05157259,140.34,140.3,3.5628]
[1724959785598,0.05157259,140.34,140.27,6.86]
[1724959785990,0.05157259,140.34,140.31,3.5624]
[1724959786196,0.05157259,140.34,140.31,7.08488407]
[1724959786502,0.05157259,140.34,140.31,3.52248407]
[1724959786799,0.05157259,140.34,140.27,6.86]
[1724959786999,0.05157259,140.34,140.31,3.5625]
[1724959787198,0.05157259,140.34,140.32,3.48580266]
[1724959787400,0.05157259,140.34,140.27,6.86]
[1724959787600,0.05157259,140.34,140.32,3.5622]
[1724959787801,0.05157259,140.34,140.32,3.5876559]
[1724959788002,0.05157259,140.34,140.27,6.86]
[1724959788197,0.05157259,140.34,140.31,3.5624]
[1724959788803,0.05157259,140.34,140.3,3.5627]
[1724959789012,0.05157259,140.34,140.27,6.86]
[1724959789803,0.05157259,140.34,140.28,27.37]
[1724959790008,0.05157259,140.34,140.3,27.37]
[1724959790213,0.05157259,140.34,140.33,3.5621]
[1724959790411,0.05157259,140.34,140.33,7.12782775]
[1724959790713,30.3647,140.4,140.36,3.5613]
[1724959790914,1.5504,140.4,140.33,3.56572775]
[1724959791218,1.4899,140.41,140.34,27.37]
[1724959791810,0.04756138,140.39,140.36,0.04581201]
[1724959792011,0.04756138,140.39,140.37,3.5609]
[1724959792411,3.5611,140.37,140.36,0.04581201]
[1724959792607,30.9311,140.37,140.36,0.04581201]
[1724959793319,27.37,140.37,140.36,0.04581201]
[1724959795614,30.9309,140.38,140.36,0.04581201]
[1724959796910,30.9309,140.38,140.36,3.60711201]
[1724959796911,27.37,140.38,140.36,3.60711201]
[1724959797320,30.9309,140.38,140.36,0.04581201]
[1724959797917,3.5611,140.37,140.36,0.04581201]
[1724959802221,27.37,140.38,140.36,0.04581201]
[1724959805220,0.04756138,140.39,140.38,3.5608]
[1724959808828,0.04756138,140.39,140.36,0.04581201]
[1724959809323,0.04756138,140.39,140.36,3.60701201]
[1724959809528,0.04756138,140.39,140.36,0.04581201]
[1724959809936,0.04756138,140.39,140.37,3.5609]
[1724959810224,0.04756138,140.39,140.36,0.04581201]
[1724959810631,0.04756138,140.39,140.37,3.5611]
[1724959811029,0.04756138,140.39,140.36,0.04581201]
[1724959811527,0.04756138,140.39,140.38,3.5608]
[1724959813724,0.04756138,140.39,140.36,3.60701201]
[1724959814031,0.04756138,140.39,140.36,0.04581201]
[1724959814231,27.37,140.37,140.36,0.04581201]
[1724959814439,27.37,140.35,140.27,6.82]
[1724959814731,27.37,140.31,140.21,20.05734807]
[1724959814932,27.37,140.31,140.21,27.37]
[1724959815137,27.37,140.31,140.21,30.97702663]
[1724959815429,0.05381283,140.27,140.26,3.5637]
[1724959815638,0.05027664,140.28,140.26,3.5637]
[1724959816139,0.05027664,140.28,140.26,7.1678786]
[1724959816327,0.05027664,140.28,140.26,3.5637]
[1724959816527,0.05027664,140.28,140.25,3.564]
[1724959817130,0.05027664,140.28,140.25,7.1368503]
[1724959817336,0.05027664,140.28,140.21,34.19]
[1724959817531,0.05027664,140.28,140.21,3.48668849]
[1724959817830,0.05027664,140.28,140.2,0.9619]
[1724959818229,3.61367664,140.28,140.2,4.55083429]
[1724959818739,0.05027664,140.28,140.21,34.21]
[1724959818932,0.05145744,140.26,140.21,37.7447832]
[1724959819239,0.05145744,140.26,140.25,3.5641]
[1724959820638,0.05145744,140.26,140.24,3.5643]
[1724959821235,0.05145744,140.26,140.22,3.5647]
[1724959821437,0.05145744,140.26,140.21,3.5347832]
[1724959821631,0.05145744,140.26,140.17,34.21]
[1724959821836,0.05222636,140.23,140.17,34.21]
[1724959822232,0.05222636,140.23,140.17,41.03]
[1724959822535,0.05222636,140.23,140.19,3.5655]
[1724959822740,3.565,140.22,140.15,34.21]
[1724959822939,0.05244599,140.2,140.14,0.9787]
[1724959823134,0.05244599,140.2,140.14,7.7987]
[1724959823338,0.05244599,140.2,140.14,0.9787]
[1724959823536,0.05244599,140.2,140.14,7.7987]
[1724959823739,0.05244599,140.2,140.14,11.35322772]
[1724959824933,0.05244599,140.2,140.14,7.7987]
[1724959825139,0.05244599,140.2,140.14,11.43735028]
[1724959825355,0.05244599,140.2,140.15,34.21]
[1724959825637,0.05244599,140.2,140.17,3.5661]
[1724959826232,0.05244599,140.2,140.18,3.5659]
[1724959827434,0.05244599,140.2,140.18,7.21202825]
[1724959827638,0.05244599,140.2,140.19,3.5656]
[1724959828940,3.0267,140.27,140.18,3.64612825]
[1724959829157,1.5708,140.27,140.19,34.21]
[1724959829339,1.5248,140.3,140.22,34.21]
[1724959829644,1.5248,140.3,140.25,3.564]
[1724959829837,37.2591,140.32,140.22,34.21]
[1724959830043,0.04609005,140.28,140.26,0.04542292]
[1724959830744,0.04609005,140.28,140.27,3.53396906]
[1724959832353,0.04609005,140.28,140.27,7.09756906]
[1724959837038,0.04609005,140.28,140.27,3.53396906]
[1724959838249,0.04609005,140.28,140.27,7.09756906]
[1724959839144,0.04609005,140.28,140.27,3.53396906]
[1724959840450,0.04609005,140.28,140.27,7.09756906]
[1724959841653,0.04609005,140.28,140.27,3.53396906]
[1724959841857,0.04609005,140.28,140.26,0.04542292]
[1724959842256,34.25609005,140.28,140.26,0.04542292]
[1724959842560,3.5636,140.27,140.26,0.04542292]
[1724959843556,3.5636,140.27,140.18,41.01]
[1724959843749,34.21,140.26,140.16,34.21]
[1724959843950,35.6595,140.26,140.16,41.01]
[1724959844258,336.5581,140.28,140.14,4.50797961]
[1724959844259,335.0,140.28,140.22,34.21]
[1724959844552,1.4722,140.29,140.22,37.70766074]
[1724959844752,0.05281356,140.26,140.22,44.50766074]
[1724959845955,0.05281356,140.26,140.24,34.21]
[1724959846153,0.05281356,140.26,140.25,3.5641]
[1724959849658,1.5946,140.33,140.28,3.5631]
[1724959850358,1.5946,140.33,140.29,3.563]
[1724959850660,0.05015498,140.32,140.3,0.04729858]
[1724959850852,0.05015498,140.32,140.3,0.05475723]
[1724959851963,34.21,140.31,140.22,3.49766074]
[1724959852158,34.21,140.31,140.14,30.78353687]
[1724959852159,34.21,140.31,140.14,7.1335]
[1724959852465,34.21,140.31,140.25,3.564]
[1724959852655,34.21,140.26,140.07,9.82266774]
[1724959852855,0.04718974,140.18,140.13,34.21]
[1724959853059,34.21,140.24,140.14,0.927654]
[1724959853060,0.04890222,140.17,140.14,0.927654]
[1724959853250,0.05300914,140.17,140.13,37.75419479]
[1724959853660,0.05300914,140.17,140.13,3.54419479]
[1724959853859,0.05300914,140.17,140.11,34.21]
[1724959854360,0.05300914,140.17,140.11,37.75383848]
[1724959855663,0.05300914,140.17,140.15,3.5666]
[1724959856463,0.05300914,140.17,140.13,3.64069234]
[1724959856666,0.05300914,140.17,140.08,34.21]
[1724959856859,0.0528468,140.14,140.09,3.5682]
[1724959858665,0.0528468,140.14,140.1,3.5679]
[1724959858867,0.0528468,140.14,140.09,34.21]
[1724959859061,0.0528468,140.14,140.07,11.08907532]
[1724959859062,0.0528468,140.14,140.11,34.21]
[1724959859458,370.6523,140.24,140.13,34.21]
[1724959859667,1.4891,140.23,140.13,34.21]
[1724959859862,3.5655,140.2,140.13,34.21]
[1724959860064,1.4891,140.23,140.13,34.21]
[1724959860461,1.4891,140.23,140.17,0.04573471]
[1724959860664,0.05210143,140.19,140.17,3.67962042]
[1724959861371,0.05210143,140.19,140.17,0.04573471]
[1724959861569,34.26210143,140.19,140.09,40.99]
[1724959861761,34.21,140.19,140.09,34.21]
[1724959862068,34.21,140.19,140.09,40.99]
[1724959862269,5.0979,140.22,140.15,3.5665]
[1724959862467,5.0979,140.22,140.15,3.63566878]
[1724959862664,0.05410025,140.2,140.17,0.02079083]
[1724959863571,34.21,140.19,140.17,0.02079083]
[1724959863764,34.21,140.19,140.07,38.49907532]
[1724959863765,3.5659,140.18,140.07,38.49907532]
[1724959863960,3.5659,140.18,140.08,6.78]
[1724959864156,3.5659,140.18,140.09,6.78]
[1724959864364,34.21,140.19,140.07,38.49907532]
[1724959864574,34.21,140.19,140.08,6.78]
[1724959864575,3.5665,140.16,140.08,6.78]
[1724959864762,3.5665,140.16,140.07,38.49907532]
[1724959864763,0.05006417,140.14,140.07,45.27907532]
[1724959864962,0.05006417,140.14,140.07,38.49907532]
[1724959865169,0.05006417,140.14,140.11,34.21]
[1724959865562,0.05006417,140.14,140.13,3.5672]
[1724959871769,1.533,140.22,140.11,40.99]
[1724959871964,1.533,140.22,140.14,34.21]
[1724959872871,0.04959418,140.19,140.17,0.04811666]
[1724959873078,0.04959418,140.19,140.17,3.52386175]
[1724959873473,0.04959418,140.19,140.18,3.5659]
[1724959874475,0.04959418,140.19,140.17,0.04811666]
[1724959875179,3.61539418,140.19,140.17,0.04811666]
[1724959875777,3.5659,140.18,140.17,0.04811666]
[1724959875977,34.25959418,140.19,140.09,6.78]
[1724959876168,35.6295,140.17,140.07,37.69097532]
[1724959876372,5.0194,140.16,140.07,44.47097532]
[1724959876572,5.0194,140.16,140.1,3.5678]
[1724959876772,1.4529,140.16,140.07,44.47097532]
[1724959876970,0.0503964,140.14,140.07,44.47097532]
[1724959877274,0.0503964,140.14,140.11,3.5676]
[1724959878474,0.0503964,140.14,140.1,3.5679]
[1724959878671,0.0503964,140.14,140.07,10.26097532]
[1724959879073,0.0503964,140.14,140.09,3.568]
[1724959879379,0.0503964,140.14,140.07,10.26097532]
[1724959879883,0.0503964,140.14,140.1,3.5679]
[1724959880378,0.0503964,140.14,140.07,3.48097532]
[1724959880675,0.0503964,140.14,140.06,6.78]
[1724959880874,34.21,140.15,140.06,6.78]
[1724959880875,0.04816491,140.11,140.07,3.5685]
[1724959881279,0.04816491,140.11,140.02,1.445]
[1724959881280,34.21,140.1,140.04,3.5692]
[1724959881478,34.21,140.1,139.99,34.21]
[1724959881479,0.05113759,140.08,139.99,42.4213]
[1724959881688,0.05202741,140.05,140.0,0.92872882]
[1724959881984,0.05202741,140.05,140.0,7.70872882]
[1724959882281,0.05202741,140.05,140.04,3.5692]
[1724959882880,0.05202741,140.05,140.03,3.5696]
[1724959883183,0.05202741,140.05,140.0,6.78]
[1724959883382,0.05202741,140.05,140.01,0.9287307]
[1724959884180,0.05202741,140.05,140.02,3.5698]
[1724959884674,0.05202741,140.05,140.04,12.48758324]
[1724959884978,0.05202741,140.05,140.04,15.77963366]
[1724959885379,0.05202741,140.05,140.04,12.21013366]
[1724959885889,0.05202741,140.05,140.04,9.3828509]
[1724959886183,0.05202741,140.05,140.04,6.86155042]
[1724959888087,0.05202741,140.05,140.04,3.29205042]
[1724959888383,0.05202741,140.05,140.02,3.29205361]
[1724959888582,0.05202741,140.05,140.04,3.5695]
[1724959889086,0.05202741,140.05,140.04,3.29205361]
[1724959889782,0.05202741,140.05,140.02,41.22975921]
[1724959889990,34.21,140.15,140.04,34.21]
[1724959890192,34.21,140.15,139.99,2.8861]
[1724959890193,37.2562,140.15,140.06,34.21]
[1724959890381,37.2562,140.15,140.06,37.73321109]
[1724959890689,37.2562,140.15,140.06,44.49321109]
[1724959890999,0.0520406,140.11,140.09,0.04844225]
[1724959894190,0.0520406,140.11,140.09,3.61654225]
[1724959898591,0.0520406,140.11,140.1,3.5679]
[1724959899493,1.4294,140.18,140.14,3.5669]
[1724959899793,1.4294,140.18,140.15,3.5664]
[1724959899998,3.0044,140.19,140.15,3.5664]
[1724959900493,0.04834799,140.18,140.16,3.56202823]
[1724959900893,0.04834799,140.18,140.16,0.04980977]
[1724959904601,0.04834799,140.18,140.16,3.61610977]
[1724959904992,0.04834799,140.18,140.16,0.04980977]
[1724959905392,0.04834799,140.18,140.16,3.61620977]
[1724959905600,0.04834799,140.18,140.16,0.04980977]
[1724959906700,3.61434799,140.18,140.16,0.04980977]
[1724959906894,0.04834799,140.18,140.16,0.04980977]
[1724959907203,0.04834799,140.18,140.17,3.5662]
[1724959911502,0.04834799,140.18,140.16,3.6679992]
[1724959912199,0.04834799,140.18,140.16,7.2342992]
[1724959915102,0.04834799,140.18,140.16,0.04980977]
[1724959921111,27.42834799,140.18,140.16,0.04980977]
[1724959921316,27.38,140.14,140.06,3.52321109]
[1724959921619,27.38,140.14,140.05,34.1]
[1724959922008,27.38,140.14,140.09,3.568]
[1724959922214,0.0543275,140.13,140.1,0.04770061]
[1724959922511,0.0543275,140.13,140.11,27.38]
[1724959922713,0.0543275,140.13,140.12,3.5674]
[1724959922911,3.0117,140.19,140.11,27.38]
[1724959923213,3.0117,140.19,140.13,3.5671]
[1724959923419,3.0117,140.19,140.11,27.38]